{"text_format":"3","workbook":"xlsx","n_sheets":2,"sheets":["LCRB","Cell Specifications"],"not_rendered":{"defined_names":1,"comments":1},"read":"whole","date_system":"1900"}

{"sheet":"LCRB","index":0,"n_rows":43,"n_cols":21,"rows_kept":43,"merged":[[4,4,4,5],[5,4,5,5],[6,4,6,5],[7,4,7,5],[8,4,8,5]]}
["Non-Medical Cannabis Monthly Report"]
["British Columbia - Private Retailers"]
[{"$nulls":18},2018,"01","Distributor"]
["Identification",{"$nulls":3},"Business Stats",{"$nulls":13},2019,"02","Retailer"]
["Reporting Year (YYYY)",{"$nulls":3},"Management Employees",{"$nulls":13},2021,"04"]
["Reporting Month (MM)",{"$nulls":3},"Administrative Employees",{"$nulls":13},2022,"05"]
["Retailer",1,null,null,"Sales Employees",{"$nulls":14},"06"]
["Company Name",{"$nulls":3},"Production"]
["Site ID (LCRB License Number)",{"$nulls":3},"Other Employees"]
["City"]
["Postal Code"]
[{"$nulls":19},11]
["Packaged","Seeds","Vegatative Cannabis Plants","Fresh Cannabis","Dried Cannabis","Edibles - \nSolids","Edibles - \nNon-solids","Extracts - \nInhaled","Extracts - Ingested","Extracts - \nOther","Topicals","Other",{"$nulls":7},12]
["Opening inventory ►"]
[]
["Additions to inventory "]
["Packaged - Additions - Received - domestic"]
["Packaged - Additions - Received - returned"]
["Packaged - Additions - Other "]
["Total additions ►",{"$f":"SUM(B17:B19)","v":0},0,{"$f":"SUM(D17:D19)","v":0},0,0,0,0,0,0,0,0]
[]
["Reductions to inventory "]
["Packaged - Reductions - Shipped - domestic "]
["Packaged - Reductions - Shipped - returned"]
["Packaged - Reductions - Destroyed"]
["Packaged - Reductions - Lost/stolen"]
["Packaged - Reductions - Other "]
["Total reductions ►",{"$f":"SUM(B23:B27)","v":0},0,0,0,{"$f":"SUM(F23:F27)","v":0},{"$f":"SUM(G23:G27)","v":0},{"$f":"SUM(H23:H27)","v":0},{"$f":"SUM(I23:I27)","v":0},{"$f":"SUM(J23:J27)","v":0},{"$f":"SUM(K23:K27)","v":0},{"$f":"SUM(L23:L27)","v":0}]
[]
["Closing Inventory  ►",{"$f":"SUM(B14+B20-B28)","v":0},0,0,0,0,0,0,0,0,0,0]
[]
["Closing Inventory Value  ►",null,null,0,0,0,0,0,0,0,0,0]
["Closing Inventory Weight  ►"]
[]
["Sales - Non Medical"]
["Direct to consumer (online) - Retail Cost #"]
["Direct to consumer (online) - Retail Cost $"]
["Direct to consumer - Retail Cost - # Sold"]
["Direct to consumer - Retail Cost - $ Sold"]
["To distributor (wholesale) - Retail Cost #"]
["To distributor (wholesale) - Retail Cost $"]
["To retailer (wholesale) - Retail Cost #"]
["To retailer (wholesale) - Retail Cost $"]

{"sheet":"Cell Specifications","index":1,"n_rows":337,"n_cols":5,"rows_kept":337,"merged":[[3,0,3,4],[11,0,11,4],[17,0,17,4],[18,1,18,4],[31,1,31,4],[43,1,43,4],[56,1,56,4],[69,1,69,4],[82,1,82,4],[95,1,95,4],[108,1,108,4],[121,1,121,4],[134,1,134,4],[147,1,147,4],[160,0,160,4]]}
["Appendix 1: Provincial/territorial distributor/retailer monthly report file specifications"]
[]
["Cell Ref","Column Name","Unit of Measure","Field requirements","Description"]
["Reporting Period"]
["B5","Reporting Period Year (####)","####","List the four digit year of the reporting period","The year of the reporting period. For .csv uploads, the year must appear on all rows for which there are data."]
["B6","Reporting Period Month (##)","##","List the 2 digit month of the reporting period","The month of the reporting period. For .csv uploads, the month must appear on all rows for which there are data."]
["B7","Retailer/Distributor","1 or 2","Indicate whether the site is a retailer (1) or distributor (2). NOTE: If the site conducts both retail and distribution activities, identify as a distributor.","Identify whether the report is being submitted by a retailer or a distributor. If both activities are conducted, identify as a distributor."]
["B8","Company Name","TEXT","Text","For .csv uploads, input 1 for a retailer or 2 for a distributor."]
["B9","Site ID","#","LCRB License Number","The name under which the distributor or retailer is doing business."]
["B10","City","TEXT","Text","The unique alpha-numeric identifier issued by the provincial or territorial authority to the distributor or retailer."]
["B11","Postal Code","#","Alpha-numeric code","The city or municipality where the distributor or retailer is located."]
["Business Stats"]
["G5","Management Employees","#","Whole number from 0 to 1000000.","Senior and middle management employees."]
["G6","Administrative Employees","#","Whole number from 0 to 1000000.","Financial and business services employees, administrative and clerical employees, and support services employees."]
["G7","Sales Employees","#","Whole number from 0 to 1000000.","Retail employees, wholesale sales employees, and customer service employees."]
["G8","Production Employees","#","Whole number from 0 to 1000000.","Supervisory employees, and production and general labour employees."]
["G9","Other Employees","#","Whole number from 0 to 1000000.","The city or municipality where the distributor or retailer is located."]
["Packaged"]
[null,"Seeds - A viable seed of a cannabis plant"]
["B14","Packaged - Seeds - Opening inventory (#)","#","Whole number from 0 to 1000000.","The number of cannabis products packaged for sale to a consumer at the retail level held in inventory at the site on the first day of the previous month."]
["B17","Packaged - Seeds - Additions - Received - domestic (#)","#","Whole number from 0 to 1000000.","The number of cannabis products that were physically received from another licence holder in Canada, including all purchases and transfers."]
["B18","Packaged - Seeds - Additions - Received - returned (#)","#","Whole number from 0 to 1000000.","The number of cannabis products received as a result of a return from a consumer or another licence holder."]
["B19","Packaged - Seeds - Additions - Other (#)","#","Whole number from 0 to 1000000.","The number of cannabis products received in inventory that is not captured by one of the categories above."]
["B23","Packaged - Seeds - Reductions - Shipped - domestic (#)","#","Whole number from 0 to 1000000.","The number of cannabis products sent within Canada, including cannabis products shipped to other licence holders, to provincially/territorially authorized distributors and retailers, and to consumers at the retail level."]
["B24","Packaged - Seeds - Reductions - Shipped - returned (#)","#","Whole number from 0 to 1000000.","The number of cannabis products sent back to a licence holder after it was purchased or received."]
["B25","Packaged - Seeds - Reductions - Destroyed (#)","#","Whole number from 0 to 1000000.","The number of cannabis products that were destroyed."]
["B26","Packaged - Seeds - Reductions - Lost/stolen (#)","#","Whole number from 0 to 1000000.","The number of cannabis products that were lost, stolen or otherwise unaccounted for."]
["B27","Packaged - Seeds - Reductions - Other (#)","#","Whole number from 0 to 1000000.","The number of cannabis products removed from inventory that is not captured by one of the categories above."]
["B30","Packaged - Seeds - Closing inventory total number of packages (#)","#","Whole number from 0 to 1000000.","The number of cannabis products held in inventory at the site on the last day of the previous month."]
["B32","Packaged - Seeds - Closing inventory total packages value ($)","$","Number from 0 to 1000000, maximum precision of 2 decimal places.","The book value, in Canadian dollars and net of sales tax, of the cannabis products held in inventory at the site on the last day of the previous month."]
["B33","Packaged - Seeds - Total number of seeds (#)","#","Whole number from 0 to 1000000.","The weight, in kilograms (except for cannabis seeds and plants, which are to be reported by number of seeds and number of plants, respectively), of the cannabis contained in the cannabis products held in inventory at the site on the last day on the previous month."]
[null,"Vegatative cannabis plant - A cannabis plant that is not budding or flowering.  Examples: clones, seedlings"]
["C14","Packaged - Vegetative cannabis plants - Opening inventory (#)","#","Whole number from 0 to 1000000.","The number of cannabis products packaged for sale to a consumer at the retail level held in inventory at the site on the first day of the previous month."]
["C17","Packaged - Vegetative cannabis plants - Additions - Received - domestic (#)","#","Whole number from 0 to 1000000.","The number of cannabis products that were physically received from another licence holder in Canada, including all purchases and transfers."]
["C18","Packaged - Vegetative cannabis plants - Additions - Received - returned (#)","#","Whole number from 0 to 1000000.","The number of cannabis products received as a result of a return from a consumer or another licence holder."]
["C19","Packaged - Vegetative cannabis plants - Additions - Other (#)","#","Whole number from 0 to 1000000.","The number of cannabis products received in inventory that is not captured by one of the categories above."]
["C23","Packaged - Vegetative cannabis plants - Reductions - Shipped - domestic (#)","#","Whole number from 0 to 1000000.","The number of cannabis products sent within Canada, including cannabis products shipped to other licence holders, to provincially/territorially authorized distributors and retailers, and to consumers at the retail level."]
["C24","Packaged - Vegetative cannabis plants - Reductions - Shipped - returned (#)","#","Whole number from 0 to 1000000.","The number of cannabis products sent back to a licence holder after it was purchased or received."]
["C25","Packaged - Vegetative cannabis plants - Reductions - Destroyed (#)","#","Whole number from 0 to 1000000.","The number of cannabis products that were destroyed."]
["C26","Packaged - Vegetative cannabis plants - Reductions - Lost/stolen (#)","#","Whole number from 0 to 1000000.","The number of cannabis products that were lost, stolen or otherwise unaccounted for."]
["C27","Packaged - Vegetative cannabis plants - Reductions - Other (#)","#","Whole number from 0 to 1000000.","The number of cannabis products removed from inventory that is not captured by one of the categories above."]
["C30","Packaged - Vegetative cannabis plants - Closing inventory (#)","#","Whole number from 0 to 1000000.","The number of cannabis products held in inventory at the site on the last day of the previous month."]
["C32","Packaged - Vegetative cannabis plants - Closing inventory value ($)","$","Number from 0 to 1000000, maximum precision of 2 decimal places.","The book value, in Canadian dollars and net of sales tax, of the cannabis products held in inventory at the site on the last day of the previous month."]
[null,"Fresh Cannabis - Freshly harvested cannabis buds and leaves. Does not include plant material that can be used to propagate cannabis. Examples: wet/raw cannabis buds and leaves"]
["D14","Packaged - Fresh cannabis - Opening inventory (#)","#","Whole number from 0 to 1000000.","The number of cannabis products packaged for sale to a consumer at the retail level held in inventory at the site on the first day of the previous month."]
["D17","Packaged - Fresh cannabis - Additions - Received - domestic (#)","#","Whole number from 0 to 1000000.","The number of cannabis products that were physically received from another licence holder in Canada, including all purchases and transfers."]
["D18","Packaged - Fresh cannabis - Additions - Received - returned (#)","#","Whole number from 0 to 1000000.","The number of cannabis products received as a result of a return from a consumer or another licence holder."]
["D19","Packaged - Fresh cannabis - Additions - Other (#)","#","Whole number from 0 to 1000000.","The number of cannabis products received in inventory that is not captured by one of the categories above."]
["D23","Packaged - Fresh cannabis - Reductions - Shipped - domestic (#)","#","Whole number from 0 to 1000000.","The number of cannabis products sent within Canada, including cannabis products shipped to other licence holders, to provincially/territorially authorized distributors and retailers, and to consumers at the retail level."]
["D24","Packaged - Fresh cannabis - Reductions - Shipped - returned (#)","#","Whole number from 0 to 1000000.","The number of cannabis products sent back to a licence holder after it was purchased or received."]
["D25","Packaged - Fresh cannabis - Reductions - Destroyed (#)","#","Whole number from 0 to 1000000.","The number of cannabis products that were destroyed."]
["D26","Packaged - Fresh cannabis - Reductions - Lost/stolen (#)","#","Whole number from 0 to 1000000.","The number of cannabis products that were lost, stolen or otherwise unaccounted for."]
["D27","Packaged - Fresh cannabis - Reductions - Other (#)","#","Whole number from 0 to 1000000.","The number of cannabis products removed from inventory that is not captured by one of the categories above."]
["D30","Packaged - Fresh cannabis - Closing inventory (#)","#","Whole number from 0 to 1000000.","The number of cannabis products held in inventory at the site on the last day of the previous month."]
["D32","Packaged - Fresh cannabis - Closing inventory value ($)","$","Number from 0 to 1000000, maximum precision of 2 decimal places.","The book value, in Canadian dollars and net of sales tax, of the cannabis products held in inventory at the site on the last day of the previous month."]
["D33","Packaged - Fresh cannabis - Closing inventory weight (kg)","kg","Number from 0 to 1000000, maximum precision of 3 decimal places.","The weight, in kilograms (except for cannabis seeds and plants, which are to be reported by number of seeds and number of plants, respectively), of the cannabis contained in the cannabis products held in inventory at the site on the last day on the previous month."]
[null,"Dried Cannabis - Any part of a cannabis plant that has been subjected to a drying process, other than seeds.  Example: dried flowers, pre-ground/milled (trim/shake), pre-rolls"]
["E14","Packaged - Dried cannabis - Opening inventory (#)","#","Whole number from 0 to 1000000.","The number of cannabis products packaged for sale to a consumer at the retail level held in inventory at the site on the first day of the previous month."]
["E17","Packaged - Dried cannabis - Additions - Received - domestic (#)","#","Whole number from 0 to 1000000.","The number of cannabis products that were physically received from another licence holder in Canada, including all purchases and transfers."]
["E18","Packaged - Dried cannabis - Additions - Received - returned (#)","#","Whole number from 0 to 1000000.","The number of cannabis products received as a result of a return from a consumer or another licence holder."]
["E19","Packaged - Dried cannabis - Additions - Other (#)","#","Whole number from 0 to 1000000.","The number of cannabis products received in inventory that is not captured by one of the categories above."]
["E23","Packaged - Dried cannabis - Reductions - Shipped - domestic (#)","#","Whole number from 0 to 1000000.","The number of cannabis products sent within Canada, including cannabis products shipped to other licence holders, to provincially/territorially authorized distributors and retailers, and to consumers at the retail level."]
["E24","Packaged - Dried cannabis - Reductions - Shipped - returned (#)","#","Whole number from 0 to 1000000.","The number of cannabis products sent back to a licence holder after it was purchased or received."]
["E25","Packaged - Dried cannabis - Reductions - Destroyed (#)","#","Whole number from 0 to 1000000.","The number of cannabis products that were destroyed."]
["E26","Packaged - Dried cannabis - Reductions - Lost/stolen (#)","#","Whole number from 0 to 1000000.","The number of cannabis products that were lost, stolen or otherwise unaccounted for."]
["E27","Packaged - Dried cannabis - Reductions - Other (#)","#","Whole number from 0 to 1000000.","The number of cannabis products removed from inventory that is not captured by one of the categories above."]
["E30","Packaged - Dried cannabis - Closing inventory (#)","#","Whole number from 0 to 1000000.","The number of cannabis products held in inventory at the site on the last day of the previous month."]
["E32","Packaged - Dried cannabis - Closing inventory value ($)","$","Number from 0 to 1000000, maximum precision of 2 decimal places.","The book value, in Canadian dollars and net of sales tax, of the cannabis products held in inventory at the site on the last day of the previous month."]
["E33","Packaged - Dried cannabis - Closing inventory weight (kg)","kg","Number from 0 to 1000000, maximum precision of 3 decimal places.","The weight, in kilograms (except for cannabis seeds and plants, which are to be reported by number of seeds and number of plants, respectively), of the cannabis contained in the cannabis products held in inventory at the site on the last day on the previous month."]
[null,"Edibles - Solids  - Edible cannabis that is in solid form at a temperature of 22 ± 2°C and is intended to be eaten.  Examples: chocolate bars, cookies, mints"]
["F14","Packaged - Edibles - Solids - Opening inventory (#)","#","Whole number from 0 to 1000000.","The number of cannabis products packaged for sale to a consumer at the retail level held in inventory at the site on the first day of the previous month."]
["F17","Packaged - Edibles - Solids - Additions - Received - domestic (#)","#","Whole number from 0 to 1000000.","The number of cannabis products that were physically received from another licence holder in Canada, including all purchases and transfers."]
["F18","Packaged - Edibles - Solids - Additions - Received - returned (#)","#","Whole number from 0 to 1000000.","The number of cannabis products received as a result of a return from a consumer or another licence holder."]
["F19","Packaged - Edibles - Solids - Additions - Other (#)","#","Whole number from 0 to 1000000.","The number of cannabis products received in inventory that is not captured by one of the categories above."]
["F23","Packaged - Edibles - Solids - Reductions - Shipped - domestic (#)","#","Whole number from 0 to 1000000.","The number of cannabis products sent within Canada, including cannabis products shipped to other licence holders, to provincially/territorially authorized distributors and retailers, and to consumers at the retail level."]
["F24","Packaged - Edibles - Solids - Reductions - Shipped - returned (#)","#","Whole number from 0 to 1000000.","The number of cannabis products sent back to a licence holder after it was purchased or received."]
["F25","Packaged - Edibles - Solids - Reductions - Destroyed (#)","#","Whole number from 0 to 1000000.","The number of cannabis products that were destroyed."]
["F26","Packaged - Edibles - Solids - Reductions - Lost/stolen (#)","#","Whole number from 0 to 1000000.","The number of cannabis products that were lost, stolen or otherwise unaccounted for."]
["F27","Packaged - Edibles - Solids - Reductions - Other (#)","#","Whole number from 0 to 1000000.","The number of cannabis products removed from inventory that is not captured by one of the categories above."]
["F30","Packaged - Edibles - Solids - Closing inventory (#)","#","Whole number from 0 to 1000000.","The number of cannabis products held in inventory at the site on the last day of the previous month."]
["F32","Packaged - Edibles - Solids - Closing inventory value ($)","$","Number from 0 to 1000000, maximum precision of 2 decimal places.","The book value, in Canadian dollars and net of sales tax, of the cannabis products held in inventory at the site on the last day of the previous month."]
["F33","Packaged - Edibles - Solids - Closing inventory weight (kg)","kg","Number from 0 to 1000000, maximum precision of 3 decimal places.","The weight, in kilograms (except for cannabis seeds and plants, which are to be reported by number of seeds and number of plants, respectively), of the cannabis contained in the cannabis products held in inventory at the site on the last day on the previous month."]
[null,"Edibles - Non-Solids  - Edible cannabis that is not in solid form at a temperature of 22 ± 2°C and is intended to be drunk.  Examples: THC-infused beverages, sports recovery drinks"]
["G14","Packaged - Edibles - Non-solids - Opening inventory (#)","#","Whole number from 0 to 1000000.","The number of cannabis products packaged for sale to a consumer at the retail level held in inventory at the site on the first day of the previous month."]
["G17","Packaged - Edibles - Non-solids - Additions - Received - domestic (#)","#","Whole number from 0 to 1000000.","The number of cannabis products that were physically received from another licence holder in Canada, including all purchases and transfers."]
["G18","Packaged - Edibles - Non-solids - Additions - Received - returned (#)","#","Whole number from 0 to 1000000.","The number of cannabis products received as a result of a return from a consumer or another licence holder."]
["G19","Packaged - Edibles - Non-solids - Additions - Other (#)","#","Whole number from 0 to 1000000.","The number of cannabis products received in inventory that is not captured by one of the categories above."]
["G23","Packaged - Edibles - Non-solids - Reductions - Shipped - domestic (#)","#","Whole number from 0 to 1000000.","The number of cannabis products sent within Canada, including cannabis products shipped to other licence holders, to provincially/territorially authorized distributors and retailers, and to consumers at the retail level."]
["G24","Packaged - Edibles - Non-solids - Reductions - Shipped - returned (#)","#","Whole number from 0 to 1000000.","The number of cannabis products sent back to a licence holder after it was purchased or received."]
["G25","Packaged - Edibles - Non-solids - Reductions - Destroyed (#)","#","Whole number from 0 to 1000000.","The number of cannabis products that were destroyed."]
["G26","Packaged - Edibles - Non-solids - Reductions - Lost/stolen (#)","#","Whole number from 0 to 1000000.","The number of cannabis products that were lost, stolen or otherwise unaccounted for."]
["G27","Packaged - Edibles - Non-solids - Reductions - Other (#)","#","Whole number from 0 to 1000000.","The number of cannabis products removed from inventory that is not captured by one of the categories above."]
["G30","Packaged - Edibles - Non-solids - Closing inventory (#)","#","Whole number from 0 to 1000000.","The number of cannabis products held in inventory at the site on the last day of the previous month."]
["G32","Packaged - Edibles - Non-solids - Closing inventory value ($)","$","Number from 0 to 1000000, maximum precision of 2 decimal places.","The book value, in Canadian dollars and net of sales tax, of the cannabis products held in inventory at the site on the last day of the previous month."]
["G33","Packaged - Edibles - Non-solids - Closing inventory weight (kg)","kg","Number from 0 to 1000000, maximum precision of 3 decimal places.","The weight, in kilograms (except for cannabis seeds and plants, which are to be reported by number of seeds and number of plants, respectively), of the cannabis contained in the cannabis products held in inventory at the site on the last day on the previous month."]
[null,"Extracts - Inhaled - Products that are produced using extraction processing methods or by synthesizing phytocannabinoids and are intended for inhalation.  Examples: vape pens, hash, wax, rosin"]
["H14","Packaged - Extracts - Inhaled - Opening inventory (#)","#","Whole number from 0 to 1000000.","The number of cannabis products packaged for sale to a consumer at the retail level held in inventory at the site on the first day of the previous month."]
["H17","Packaged - Extracts - Inhaled - Additions - Received - domestic (#)","#","Whole number from 0 to 1000000.","The number of cannabis products that were physically received from another licence holder in Canada, including all purchases and transfers."]
["H18","Packaged - Extracts - Inhaled - Additions - Received - returned (#)","#","Whole number from 0 to 1000000.","The number of cannabis products received as a result of a return from a consumer or another licence holder."]
["H19","Packaged - Extracts - Inhaled - Additions - Other (#)","#","Whole number from 0 to 1000000.","The number of cannabis products received in inventory that is not captured by one of the categories above."]
["H23","Packaged - Extracts - Inhaled - Reductions - Shipped - domestic (#)","#","Whole number from 0 to 1000000.","The number of cannabis products sent within Canada, including cannabis products shipped to other licence holders, to provincially/territorially authorized distributors and retailers, and to consumers at the retail level."]
["H24","Packaged - Extracts - Inhaled - Reductions - Shipped - returned (#)","#","Whole number from 0 to 1000000.","The number of cannabis products sent back to a licence holder after it was purchased or received."]
["H25","Packaged - Extracts - Inhaled - Reductions - Destroyed (#)","#","Whole number from 0 to 1000000.","The number of cannabis products that were destroyed."]
["H26","Packaged - Extracts - Inhaled - Reductions - Lost/stolen (#)","#","Whole number from 0 to 1000000.","The number of cannabis products that were lost, stolen or otherwise unaccounted for."]
["H27","Packaged - Extracts - Inhaled - Reductions - Other (#)","#","Whole number from 0 to 1000000.","The number of cannabis products removed from inventory that is not captured by one of the categories above."]
["H30","Packaged - Extracts - Inhaled - Closing inventory (#)","#","Whole number from 0 to 1000000.","The number of cannabis products held in inventory at the site on the last day of the previous month."]
["H32","Packaged - Extracts - Inhaled - Closing inventory value ($)","$","Number from 0 to 1000000, maximum precision of 2 decimal places.","The book value, in Canadian dollars and net of sales tax, of the cannabis products held in inventory at the site on the last day of the previous month."]
["H33","Packaged - Extracts - Inhaled - Closing inventory weight (kg)","kg","Number from 0 to 1000000, maximum precision of 3 decimal places.","The weight, in kilograms (except for cannabis seeds and plants, which are to be reported by number of seeds and number of plants, respectively), of the cannabis contained in the cannabis products held in inventory at the site on the last day on the previous month."]
[null,"Extracts - Ingested -Products that are produced using extraction processing methods or by synthesizing phytocannabinoids and are intended for ingestion, including absorption in the mouth.  Examples: tinctures, capsules, softgels, sprays intended for oral consumption"]
["I14","Packaged - Extracts - Ingested - Opening inventory (#)","#","Whole number from 0 to 1000000.","The number of cannabis products packaged for sale to a consumer at the retail level held in inventory at the site on the first day of the previous month."]
["I17","Packaged - Extracts - Ingested - Additions - Received - domestic (#)","#","Whole number from 0 to 1000000.","The number of cannabis products that were physically received from another licence holder in Canada, including all purchases and transfers."]
["I18","Packaged - Extracts - Ingested - Additions - Received - returned (#)","#","Whole number from 0 to 1000000.","The number of cannabis products received as a result of a return from a consumer or another licence holder."]
["I19","Packaged - Extracts - Ingested - Additions - Other (#)","#","Whole number from 0 to 1000000.","The number of cannabis products received in inventory that is not captured by one of the categories above."]
["I23","Packaged - Extracts - Ingested - Reductions - Shipped - domestic (#)","#","Whole number from 0 to 1000000.","The number of cannabis products sent within Canada, including cannabis products shipped to other licence holders, to provincially/territorially authorized distributors and retailers, and to consumers at the retail level."]
["I24","Packaged - Extracts - Ingested - Reductions - Shipped - returned (#)","#","Whole number from 0 to 1000000.","The number of cannabis products sent back to a licence holder after it was purchased or received."]
["I25","Packaged - Extracts - Ingested - Reductions - Destroyed (#)","#","Whole number from 0 to 1000000.","The number of cannabis products that were destroyed."]
["I26","Packaged - Extracts - Ingested - Reductions - Lost/stolen (#)","#","Whole number from 0 to 1000000.","The number of cannabis products that were lost, stolen or otherwise unaccounted for."]
["I27","Packaged - Extracts - Ingested - Reductions - Other (#)","#","Whole number from 0 to 1000000.","The number of cannabis products removed from inventory that is not captured by one of the categories above."]
["I30","Packaged - Extracts - Ingested - Closing inventory (#)","#","Whole number from 0 to 1000000.","The number of cannabis products held in inventory at the site on the last day of the previous month."]
["I32","Packaged - Extracts - Ingested - Closing inventory value ($)","$","Number from 0 to 1000000, maximum precision of 2 decimal places.","The book value, in Canadian dollars and net of sales tax, of the cannabis products held in inventory at the site on the last day of the previous month."]
["I33","Packaged - Extracts - Ingested - Closing inventory weight (kg)","kg","Number from 0 to 1000000, maximum precision of 3 decimal places.","The weight, in kilograms (except for cannabis seeds and plants, which are to be reported by number of seeds and number of plants, respectively), of the cannabis contained in the cannabis products held in inventory at the site on the last day on the previous month."]
[null,"Extracts - Other - Products that are produced using extraction processing methods or by synthesizing phytocannabinoids and intended for nasal, rectal or vaginal use.  Examples: suppositories"]
["J14","Packaged - Extracts - Other - Opening inventory (#)","#","Whole number from 0 to 1000000.","The number of cannabis products packaged for sale to a consumer at the retail level held in inventory at the site on the first day of the previous month."]
["J17","Packaged - Extracts - Other - Additions - Received - domestic (#)","#","Whole number from 0 to 1000000.","The number of cannabis products that were physically received from another licence holder in Canada, including all purchases and transfers."]
["J18","Packaged - Extracts - Other - Additions - Received - returned (#)","#","Whole number from 0 to 1000000.","The number of cannabis products received as a result of a return from a consumer or another licence holder."]
["J19","Packaged - Extracts - Other - Additions - Other (#)","#","Whole number from 0 to 1000000.","The number of cannabis products received in inventory that is not captured by one of the categories above."]
["J23","Packaged - Extracts - Other - Reductions - Shipped - domestic (#)","#","Whole number from 0 to 1000000.","The number of cannabis products sent within Canada, including cannabis products shipped to other licence holders, to provincially/territorially authorized distributors and retailers, and to consumers at the retail level."]
["J24","Packaged - Extracts - Other - Reductions - Shipped - returned (#)","#","Whole number from 0 to 1000000.","The number of cannabis products sent back to a licence holder after it was purchased or received."]
["J25","Packaged - Extracts - Other - Reductions - Destroyed (#)","#","Whole number from 0 to 1000000.","The number of cannabis products that were destroyed."]
["J26","Packaged - Extracts - Other - Reductions - Lost/stolen (#)","#","Whole number from 0 to 1000000.","The number of cannabis products that were lost, stolen or otherwise unaccounted for."]
["J27","Packaged - Extracts - Other - Reductions - Other (#)","#","Whole number from 0 to 1000000.","The number of cannabis products removed from inventory that is not captured by one of the categories above."]
["J30","Packaged - Extracts - Other - Closing inventory (#)","#","Whole number from 0 to 1000000.","The number of cannabis products held in inventory at the site on the last day of the previous month."]
["J32","Packaged - Extracts - Other - Closing inventory value ($)","$","Number from 0 to 1000000, maximum precision of 2 decimal places.","The book value, in Canadian dollars and net of sales tax, of the cannabis products held in inventory at the site on the last day of the previous month."]
["J33","Packaged - Extracts - Other - Closing inventory weight (kg)","kg","Number from 0 to 1000000, maximum precision of 3 decimal places.","The weight, in kilograms (except for cannabis seeds and plants, which are to be reported by number of seeds and number of plants, respectively), of the cannabis contained in the cannabis products held in inventory at the site on the last day on the previous month."]
[null,"Topicals - Products that include cannabis as an ingredient and that are intended to be used on external body surfaces (e.g., skin, hair, nails).  Examples: creams/lotions, balms, salves"]
["K14","Packaged - Topicals - Opening inventory (#)","#","Whole number from 0 to 1000000.","The number of cannabis products packaged for sale to a consumer at the retail level held in inventory at the site on the first day of the previous month."]
["K17","Packaged - Topicals - Additions - Received - domestic (#)","#","Whole number from 0 to 1000000.","The number of cannabis products that were physically received from another licence holder in Canada, including all purchases and transfers."]
["K18","Packaged - Topicals - Additions - Received - returned (#)","#","Whole number from 0 to 1000000.","The number of cannabis products received as a result of a return from a consumer or another licence holder."]
["K19","Packaged - Topicals - Additions - Other (#)","#","Whole number from 0 to 1000000.","The number of cannabis products received in inventory that is not captured by one of the categories above."]
["K23","Packaged - Topicals - Reductions - Shipped - domestic (#)","#","Whole number from 0 to 1000000.","The number of cannabis products sent within Canada, including cannabis products shipped to other licence holders, to provincially/territorially authorized distributors and retailers, and to consumers at the retail level."]
["K24","Packaged - Topicals - Reductions - Shipped - returned (#)","#","Whole number from 0 to 1000000.","The number of cannabis products sent back to a licence holder after it was purchased or received."]
["K25","Packaged - Topicals - Reductions - Destroyed (#)","#","Whole number from 0 to 1000000.","The number of cannabis products that were destroyed."]
["K26","Packaged - Topicals - Reductions - Lost/stolen (#)","#","Whole number from 0 to 1000000.","The number of cannabis products that were lost, stolen or otherwise unaccounted for."]
["K27","Packaged - Topicals - Reductions - Other (#)","#","Whole number from 0 to 1000000.","The number of cannabis products removed from inventory that is not captured by one of the categories above."]
["K30","Packaged - Topicals - Closing inventory (#)","#","Whole number from 0 to 1000000.","The number of cannabis products held in inventory at the site on the last day of the previous month."]
["K32","Packaged - Topicals - Closing inventory value ($)","$","Number from 0 to 1000000, maximum precision of 2 decimal places.","The book value, in Canadian dollars and net of sales tax, of the cannabis products held in inventory at the site on the last day of the previous month."]
["K33","Packaged - Topicals - Closing inventory weight (kg)","kg","Number from 0 to 1000000, maximum precision of 3 decimal places.","The weight, in kilograms (except for cannabis seeds and plants, which are to be reported by number of seeds and number of plants, respectively), of the cannabis contained in the cannabis products held in inventory at the site on the last day on the previous month."]
[null,"Other - Any other class of unpackaged cannabis or cannabis products not listed above."]
["L14","Packaged - Other - Opening inventory (#)","#","Whole number from 0 to 1000000.","The number of cannabis products packaged for sale to a consumer at the retail level held in inventory at the site on the first day of the previous month."]
["L17","Packaged - Other - Additions - Received - domestic (#)","#","Whole number from 0 to 1000000.","The number of cannabis products that were physically received from another licence holder in Canada, including all purchases and transfers."]
["L18","Packaged - Other - Additions - Received - returned (#)","#","Whole number from 0 to 1000000.","The number of cannabis products received as a result of a return from a consumer or another licence holder."]
["L19","Packaged - Other - Additions - Other (#)","#","Whole number from 0 to 1000000.","The number of cannabis products received in inventory that is not captured by one of the categories above."]
["L23","Packaged - Other - Reductions - Shipped - domestic (#)","#","Whole number from 0 to 1000000.","The number of cannabis products sent within Canada, including cannabis products shipped to other licence holders, to provincially/territorially authorized distributors and retailers, and to consumers at the retail level."]
["L24","Packaged - Other - Reductions - Shipped - returned (#)","#","Whole number from 0 to 1000000.","The number of cannabis products sent back to a licence holder after it was purchased or received."]
["L25","Packaged - Other - Reductions - Destroyed (#)","#","Whole number from 0 to 1000000.","The number of cannabis products that were destroyed."]
["L26","Packaged - Other - Reductions - Lost/stolen (#)","#","Whole number from 0 to 1000000.","The number of cannabis products that were lost, stolen or otherwise unaccounted for."]
["L27","Packaged - Other - Reductions - Other (#)","#","Whole number from 0 to 1000000.","The number of cannabis products removed from inventory that is not captured by one of the categories above."]
["L30","Packaged - Other - Closing inventory (#)","#","Whole number from 0 to 1000000.","The number of cannabis products held in inventory at the site on the last day of the previous month."]
["L32","Packaged - Other - Closing inventory value ($)","$","Whole number from 0 to 1000000.","The book value, in Canadian dollars and net of sales tax, of the cannabis products held in inventory at the site on the last day of the previous month."]
["L33","Packaged - Other - Closing inventory weight (kg)","kg","Number from 0 to 1000000, maximum precision of 3 decimal places.","The weight, in kilograms (except for cannabis seeds and plants, which are to be reported by number of seeds and number of plants, respectively), of the cannabis contained in the cannabis products held in inventory at the site on the last day on the previous month."]
["Sales"]
[null,"Sales - BC - Seeds - Non-medical - Direct to consumer (online) (#)","#","Whole number from 0 to 1000000.","The number and the book value, in Canadian dollars (net of sales tax), of cannabis products sold as a result of a consumer placing an order through a provincial or territorial online system. To be reported according to the province or territory where the consumer resides.\n\nNOTE: Refer to Appendix A4, Figure 5 of the Cannabis Tracking System Monthly Reporting Guide for instructions on how to report sales of this type when an order is filled using drop shipping."]
[null,"Sales - BC - Seeds - Non-medical - Direct to consumer (online) value ($)","$","Number from 0 to 1000000, maximum precision of 2 decimal places.","The number and the book value, in Canadian dollars (net of sales tax), of cannabis products sold as a result of a consumer placing an order through a provincial or territorial online system. To be reported according to the province or territory where the consumer resides.\n\nNOTE: Refer to Appendix A4, Figure 5 of the Cannabis Tracking System Monthly Reporting Guide for instructions on how to report sales of this type when an order is filled using drop shipping."]
["B38","Sales - BC - Seeds - Non-medical - Direct to consumer (retail) (#)","#","Whole number from 0 to 1000000.","The number and the book value, in Canadian dollars (net of sales tax), of cannabis products sold as a result of an in-store purchase at a provincially or territorially authorized retailer."]
["B39","Sales - BC - Seeds - Non-medical - Direct to consumer (retail) value ($)","$","Number from 0 to 1000000, maximum precision of 2 decimal places.","The number and the book value, in Canadian dollars (net of sales tax), of cannabis products sold as a result of an in-store purchase at a provincially or territorially authorized retailer."]
[null,"Sales - BC - Seeds - Non-medical - To distributor (#)","#","Whole number from 0 to 1000000.","The number and the book value, in Canadian dollars (net of sales tax), of cannabis products sold to a provincially or territorially authorized distributor/wholesaler."]
[null,"Sales - BC - Seeds - Non-medical - To distributor value ($)","$","Number from 0 to 1000000, maximum precision of 2 decimal places.","The number and the book value, in Canadian dollars (net of sales tax), of cannabis products sold to a provincially or territorially authorized distributor/wholesaler."]
[null,"Sales - BC - Seeds - Non-medical - To retailer (#)","#","Whole number from 0 to 1000000.","The number and the book value, in Canadian dollars (net of sales tax), of cannabis products sold to a provincially or territorially authorized retailer."]
[null,"Sales - BC - Seeds - Non-medical - To retailer value ($)","$","Number from 0 to 1000000, maximum precision of 2 decimal places.","The number and the book value, in Canadian dollars (net of sales tax), of cannabis products sold to a provincially or territorially authorized retailer."]
[null,"Sales - Total - Seeds - Non-medical - Direct to consumer (online) (#)","#","Whole number from 0 to 1000000.","The number and the book value, in Canadian dollars (net of sales tax), of cannabis products sold as a result of a consumer placing an order through a provincial or territorial online system. To be reported according to the province or territory where the consumer resides.\n\nNOTE: Refer to Appendix A4, Figure 5 of the Cannabis Tracking System Monthly Reporting Guide for instructions on how to report sales of this type when an order is filled using drop shipping."]
[null,"Sales - Total - Seeds - Non-medical - Direct to consumer (online) value ($)","$","Number from 0 to 1000000, maximum precision of 2 decimal places.","The number and the book value, in Canadian dollars (net of sales tax), of cannabis products sold as a result of a consumer placing an order through a provincial or territorial online system. To be reported according to the province or territory where the consumer resides.\n\nNOTE: Refer to Appendix A4, Figure 5 of the Cannabis Tracking System Monthly Reporting Guide for instructions on how to report sales of this type when an order is filled using drop shipping."]
[null,"Sales - Total - Seeds - Non-medical - Direct to consumer (retail) (#)","#","Whole number from 0 to 1000000.","The number and the book value, in Canadian dollars (net of sales tax), of cannabis products sold as a result of an in-store purchase at a provincially or territorially authorized retailer."]
[null,"Sales - Total - Seeds - Non-medical - Direct to consumer (retail) value ($)","$","Number from 0 to 1000000, maximum precision of 2 decimal places.","The number and the book value, in Canadian dollars (net of sales tax), of cannabis products sold as a result of an in-store purchase at a provincially or territorially authorized retailer."]
[null,"Sales - Total - Seeds - Non-medical - To distributor (#)","#","Whole number from 0 to 1000000.","The number and the book value, in Canadian dollars (net of sales tax), of cannabis products sold to a provincially or territorially authorized distributor/wholesaler."]
[null,"Sales - Total - Seeds - Non-medical - To distributor value ($)","$","Number from 0 to 1000000, maximum precision of 2 decimal places.","The number and the book value, in Canadian dollars (net of sales tax), of cannabis products sold to a provincially or territorially authorized distributor/wholesaler."]
[null,"Sales - Total - Seeds - Non-medical - To retailer (#)","#","Whole number from 0 to 1000000.","The number and the book value, in Canadian dollars (net of sales tax), of cannabis products sold to a provincially or territorially authorized retailer."]
[null,"Sales - Total - Seeds - Non-medical - To retailer value ($)","$","Number from 0 to 1000000, maximum precision of 2 decimal places.","The number and the book value, in Canadian dollars (net of sales tax), of cannabis products sold to a provincially or territorially authorized retailer."]
[null,"Sales - BC - vegetative cannabis plants - Non-medical - Direct to consumer (online) (#)","#","Whole number from 0 to 1000000.","The number and the book value, in Canadian dollars (net of sales tax), of cannabis products sold as a result of a consumer placing an order through a provincial or territorial online system. To be reported according to the province or territory where the consumer resides.\n\nNOTE: Refer to Appendix A4, Figure 5 of the Cannabis Tracking System Monthly Reporting Guide for instructions on how to report sales of this type when an order is filled using drop shipping."]
[null,"Sales - BC - vegetative cannabis plants - Non-medical - Direct to consumer (online) value ($)","$","Number from 0 to 1000000, maximum precision of 2 decimal places.","The number and the book value, in Canadian dollars (net of sales tax), of cannabis products sold as a result of a consumer placing an order through a provincial or territorial online system. To be reported according to the province or territory where the consumer resides.\n\nNOTE: Refer to Appendix A4, Figure 5 of the Cannabis Tracking System Monthly Reporting Guide for instructions on how to report sales of this type when an order is filled using drop shipping."]
["C38","Sales - BC - vegetative cannabis plants - Non-medical - Direct to consumer (retail) (#)","#","Whole number from 0 to 1000000.","The number and the book value, in Canadian dollars (net of sales tax), of cannabis products sold as a result of an in-store purchase at a provincially or territorially authorized retailer."]
["C39","Sales - BC - vegetative cannabis plants - Non-medical - Direct to consumer (retail) value ($)","$","Number from 0 to 1000000, maximum precision of 2 decimal places.","The number and the book value, in Canadian dollars (net of sales tax), of cannabis products sold as a result of an in-store purchase at a provincially or territorially authorized retailer."]
[null,"Sales - BC - vegetative cannabis plants - Non-medical - To distributor (#)","#","Whole number from 0 to 1000000.","The number and the book value, in Canadian dollars (net of sales tax), of cannabis products sold to a provincially or territorially authorized distributor/wholesaler."]
[null,"Sales - BC - vegetative cannabis plants - Non-medical - To distributor value ($)","$","Number from 0 to 1000000, maximum precision of 2 decimal places.","The number and the book value, in Canadian dollars (net of sales tax), of cannabis products sold to a provincially or territorially authorized distributor/wholesaler."]
[null,"Sales - BC - vegetative cannabis plants - Non-medical - To retailer (#)","#","Whole number from 0 to 1000000.","The number and the book value, in Canadian dollars (net of sales tax), of cannabis products sold to a provincially or territorially authorized retailer."]
[null,"Sales - BC - vegetative cannabis plants - Non-medical - To retailer value ($)","$","Number from 0 to 1000000, maximum precision of 2 decimal places.","The number and the book value, in Canadian dollars (net of sales tax), of cannabis products sold to a provincially or territorially authorized retailer."]
[null,"Sales - Total - vegetative cannabis plants - Non-medical - Direct to consumer (online) (#)","#","Whole number from 0 to 1000000.","The number and the book value, in Canadian dollars (net of sales tax), of cannabis products sold as a result of a consumer placing an order through a provincial or territorial online system. To be reported according to the province or territory where the consumer resides.\n\nNOTE: Refer to Appendix A4, Figure 5 of the Cannabis Tracking System Monthly Reporting Guide for instructions on how to report sales of this type when an order is filled using drop shipping."]
[null,"Sales - Total - vegetative cannabis plants - Non-medical - Direct to consumer (online) value ($)","$","Number from 0 to 1000000, maximum precision of 2 decimal places.","The number and the book value, in Canadian dollars (net of sales tax), of cannabis products sold as a result of a consumer placing an order through a provincial or territorial online system. To be reported according to the province or territory where the consumer resides.\n\nNOTE: Refer to Appendix A4, Figure 5 of the Cannabis Tracking System Monthly Reporting Guide for instructions on how to report sales of this type when an order is filled using drop shipping."]
[null,"Sales - Total - vegetative cannabis plants - Non-medical - Direct to consumer (retail) (#)","#","Whole number from 0 to 1000000.","The number and the book value, in Canadian dollars (net of sales tax), of cannabis products sold as a result of an in-store purchase at a provincially or territorially authorized retailer."]
[null,"Sales - Total - vegetative cannabis plants - Non-medical - Direct to consumer (retail) value ($)","$","Number from 0 to 1000000, maximum precision of 2 decimal places.","The number and the book value, in Canadian dollars (net of sales tax), of cannabis products sold as a result of an in-store purchase at a provincially or territorially authorized retailer."]
[null,"Sales - Total - vegetative cannabis plants - Non-medical - To distributor (#)","#","Whole number from 0 to 1000000.","The number and the book value, in Canadian dollars (net of sales tax), of cannabis products sold to a provincially or territorially authorized distributor/wholesaler."]
[null,"Sales - Total - vegetative cannabis plants - Non-medical - To distributor value ($)","$","Number from 0 to 1000000, maximum precision of 2 decimal places.","The number and the book value, in Canadian dollars (net of sales tax), of cannabis products sold to a provincially or territorially authorized distributor/wholesaler."]
[null,"Sales - Total - vegetative cannabis plants - Non-medical - To retailer (#)","#","Whole number from 0 to 1000000.","The number and the book value, in Canadian dollars (net of sales tax), of cannabis products sold to a provincially or territorially authorized retailer."]
[null,"Sales - Total - vegetative cannabis plants - Non-medical - To retailer value ($)","$","Number from 0 to 1000000, maximum precision of 2 decimal places.","The number and the book value, in Canadian dollars (net of sales tax), of cannabis products sold to a provincially or territorially authorized retailer."]
[null,"Sales - BC - Fresh cannabis - Non-medical - Direct to consumer (online) (#)","#","Whole number from 0 to 1000000.","The number and the book value, in Canadian dollars (net of sales tax), of cannabis products sold as a result of a consumer placing an order through a provincial or territorial online system. To be reported according to the province or territory where the consumer resides.\n\nNOTE: Refer to Appendix A4, Figure 5 of the Cannabis Tracking System Monthly Reporting Guide for instructions on how to report sales of this type when an order is filled using drop shipping."]
[null,"Sales - BC - Fresh cannabis - Non-medical - Direct to consumer (online) value ($)","$","Number from 0 to 1000000, maximum precision of 2 decimal places.","The number and the book value, in Canadian dollars (net of sales tax), of cannabis products sold as a result of a consumer placing an order through a provincial or territorial online system. To be reported according to the province or territory where the consumer resides.\n\nNOTE: Refer to Appendix A4, Figure 5 of the Cannabis Tracking System Monthly Reporting Guide for instructions on how to report sales of this type when an order is filled using drop shipping."]
["D38","Sales - BC - Fresh cannabis - Non-medical - Direct to consumer (retail) (#)","#","Whole number from 0 to 1000000.","The number and the book value, in Canadian dollars (net of sales tax), of cannabis products sold as a result of an in-store purchase at a provincially or territorially authorized retailer."]
["D39","Sales - BC - Fresh cannabis - Non-medical - Direct to consumer (retail) value ($)","$","Number from 0 to 1000000, maximum precision of 2 decimal places.","The number and the book value, in Canadian dollars (net of sales tax), of cannabis products sold as a result of an in-store purchase at a provincially or territorially authorized retailer."]
[null,"Sales - BC - Fresh cannabis - Non-medical - To distributor (#)","#","Whole number from 0 to 1000000.","The number and the book value, in Canadian dollars (net of sales tax), of cannabis products sold to a provincially or territorially authorized distributor/wholesaler."]
[null,"Sales - BC - Fresh cannabis - Non-medical - To distributor value ($)","$","Number from 0 to 1000000, maximum precision of 2 decimal places.","The number and the book value, in Canadian dollars (net of sales tax), of cannabis products sold to a provincially or territorially authorized distributor/wholesaler."]
[null,"Sales - BC - Fresh cannabis - Non-medical - To retailer (#)","#","Whole number from 0 to 1000000.","The number and the book value, in Canadian dollars (net of sales tax), of cannabis products sold to a provincially or territorially authorized retailer."]
[null,"Sales - BC - Fresh cannabis - Non-medical - To retailer value ($)","$","Number from 0 to 1000000, maximum precision of 2 decimal places.","The number and the book value, in Canadian dollars (net of sales tax), of cannabis products sold to a provincially or territorially authorized retailer."]
[null,"Sales - Total - Fresh cannabis - Non-medical - Direct to consumer (online) (#)","#","Whole number from 0 to 1000000.","The number and the book value, in Canadian dollars (net of sales tax), of cannabis products sold as a result of a consumer placing an order through a provincial or territorial online system. To be reported according to the province or territory where the consumer resides.\n\nNOTE: Refer to Appendix A4, Figure 5 of the Cannabis Tracking System Monthly Reporting Guide for instructions on how to report sales of this type when an order is filled using drop shipping."]
[null,"Sales - Total - Fresh cannabis - Non-medical - Direct to consumer (online) value ($)","$","Number from 0 to 1000000, maximum precision of 2 decimal places.","The number and the book value, in Canadian dollars (net of sales tax), of cannabis products sold as a result of a consumer placing an order through a provincial or territorial online system. To be reported according to the province or territory where the consumer resides.\n\nNOTE: Refer to Appendix A4, Figure 5 of the Cannabis Tracking System Monthly Reporting Guide for instructions on how to report sales of this type when an order is filled using drop shipping."]
[null,"Sales - Total - Fresh cannabis - Non-medical - Direct to consumer (retail) (#)","#","Whole number from 0 to 1000000.","The number and the book value, in Canadian dollars (net of sales tax), of cannabis products sold as a result of an in-store purchase at a provincially or territorially authorized retailer."]
[null,"Sales - Total - Fresh cannabis - Non-medical - Direct to consumer (retail) value ($)","$","Number from 0 to 1000000, maximum precision of 2 decimal places.","The number and the book value, in Canadian dollars (net of sales tax), of cannabis products sold as a result of an in-store purchase at a provincially or territorially authorized retailer."]
[null,"Sales - Total - Fresh cannabis - Non-medical - To distributor (#)","#","Whole number from 0 to 1000000.","The number and the book value, in Canadian dollars (net of sales tax), of cannabis products sold to a provincially or territorially authorized distributor/wholesaler."]
[null,"Sales - Total - Fresh cannabis - Non-medical - To distributor value ($)","$","Number from 0 to 1000000, maximum precision of 2 decimal places.","The number and the book value, in Canadian dollars (net of sales tax), of cannabis products sold to a provincially or territorially authorized distributor/wholesaler."]
[null,"Sales - Total - Fresh cannabis - Non-medical - To retailer (#)","#","Whole number from 0 to 1000000.","The number and the book value, in Canadian dollars (net of sales tax), of cannabis products sold to a provincially or territorially authorized retailer."]
[null,"Sales - Total - Fresh cannabis - Non-medical - To retailer value ($)","$","Number from 0 to 1000000, maximum precision of 2 decimal places.","The number and the book value, in Canadian dollars (net of sales tax), of cannabis products sold to a provincially or territorially authorized retailer."]
[null,"Sales - BC - Dried cannabis - Non-medical - Direct to consumer (online) (#)","#","Whole number from 0 to 1000000.","The number and the book value, in Canadian dollars (net of sales tax), of cannabis products sold as a result of a consumer placing an order through a provincial or territorial online system. To be reported according to the province or territory where the consumer resides.\n\nNOTE: Refer to Appendix A4, Figure 5 of the Cannabis Tracking System Monthly Reporting Guide for instructions on how to report sales of this type when an order is filled using drop shipping."]
[null,"Sales - BC - Dried cannabis - Non-medical - Direct to consumer (online) value ($)","$","Number from 0 to 1000000, maximum precision of 2 decimal places.","The number and the book value, in Canadian dollars (net of sales tax), of cannabis products sold as a result of a consumer placing an order through a provincial or territorial online system. To be reported according to the province or territory where the consumer resides.\n\nNOTE: Refer to Appendix A4, Figure 5 of the Cannabis Tracking System Monthly Reporting Guide for instructions on how to report sales of this type when an order is filled using drop shipping."]
["E38","Sales - BC - Dried cannabis - Non-medical - Direct to consumer (retail) (#)","#","Whole number from 0 to 1000000.","The number and the book value, in Canadian dollars (net of sales tax), of cannabis products sold as a result of an in-store purchase at a provincially or territorially authorized retailer."]
["E39","Sales - BC - Dried cannabis - Non-medical - Direct to consumer (retail) value ($)","$","Number from 0 to 1000000, maximum precision of 2 decimal places.","The number and the book value, in Canadian dollars (net of sales tax), of cannabis products sold as a result of an in-store purchase at a provincially or territorially authorized retailer."]
[null,"Sales - BC - Dried cannabis - Non-medical - To distributor (#)","#","Whole number from 0 to 1000000.","The number and the book value, in Canadian dollars (net of sales tax), of cannabis products sold to a provincially or territorially authorized distributor/wholesaler."]
[null,"Sales - BC - Dried cannabis - Non-medical - To distributor value ($)","$","Number from 0 to 1000000, maximum precision of 2 decimal places.","The number and the book value, in Canadian dollars (net of sales tax), of cannabis products sold to a provincially or territorially authorized distributor/wholesaler."]
[null,"Sales - BC - Dried cannabis - Non-medical - To retailer (#)","#","Whole number from 0 to 1000000.","The number and the book value, in Canadian dollars (net of sales tax), of cannabis products sold to a provincially or territorially authorized retailer."]
[null,"Sales - BC - Dried cannabis - Non-medical - To retailer value ($)","$","Number from 0 to 1000000, maximum precision of 2 decimal places.","The number and the book value, in Canadian dollars (net of sales tax), of cannabis products sold to a provincially or territorially authorized retailer."]
[null,"Sales - Total - Dried cannabis - Non-medical - Direct to consumer (online) (#)","#","Whole number from 0 to 1000000.","The number and the book value, in Canadian dollars (net of sales tax), of cannabis products sold as a result of a consumer placing an order through a provincial or territorial online system. To be reported according to the province or territory where the consumer resides.\n\nNOTE: Refer to Appendix A4, Figure 5 of the Cannabis Tracking System Monthly Reporting Guide for instructions on how to report sales of this type when an order is filled using drop shipping."]
[null,"Sales - Total - Dried cannabis - Non-medical - Direct to consumer (online) value ($)","$","Number from 0 to 1000000, maximum precision of 2 decimal places.","The number and the book value, in Canadian dollars (net of sales tax), of cannabis products sold as a result of a consumer placing an order through a provincial or territorial online system. To be reported according to the province or territory where the consumer resides.\n\nNOTE: Refer to Appendix A4, Figure 5 of the Cannabis Tracking System Monthly Reporting Guide for instructions on how to report sales of this type when an order is filled using drop shipping."]
[null,"Sales - Total - Dried cannabis - Non-medical - Direct to consumer (retail) (#)","#","Whole number from 0 to 1000000.","The number and the book value, in Canadian dollars (net of sales tax), of cannabis products sold as a result of an in-store purchase at a provincially or territorially authorized retailer."]
[null,"Sales - Total - Dried cannabis - Non-medical - Direct to consumer (retail) value ($)","$","Number from 0 to 1000000, maximum precision of 2 decimal places.","The number and the book value, in Canadian dollars (net of sales tax), of cannabis products sold as a result of an in-store purchase at a provincially or territorially authorized retailer."]
[null,"Sales - Total - Dried cannabis - Non-medical - To distributor (#)","#","Whole number from 0 to 1000000.","The number and the book value, in Canadian dollars (net of sales tax), of cannabis products sold to a provincially or territorially authorized distributor/wholesaler."]
[null,"Sales - Total - Dried cannabis - Non-medical - To distributor value ($)","$","Number from 0 to 1000000, maximum precision of 2 decimal places.","The number and the book value, in Canadian dollars (net of sales tax), of cannabis products sold to a provincially or territorially authorized distributor/wholesaler."]
[null,"Sales - Total - Dried cannabis - Non-medical - To retailer (#)","#","Whole number from 0 to 1000000.","The number and the book value, in Canadian dollars (net of sales tax), of cannabis products sold to a provincially or territorially authorized retailer."]
[null,"Sales - Total - Dried cannabis - Non-medical - To retailer value ($)","$","Number from 0 to 1000000, maximum precision of 2 decimal places.","The number and the book value, in Canadian dollars (net of sales tax), of cannabis products sold to a provincially or territorially authorized retailer."]
[null,"Sales - BC - Edibles - Solids - Non-medical - Direct to consumer (online) (#)","#","Whole number from 0 to 1000000.","The number and the book value, in Canadian dollars (net of sales tax), of cannabis products sold as a result of a consumer placing an order through a provincial or territorial online system. To be reported according to the province or territory where the consumer resides.\n\nNOTE: Refer to Appendix A4, Figure 5 of the Cannabis Tracking System Monthly Reporting Guide for instructions on how to report sales of this type when an order is filled using drop shipping."]
[null,"Sales - BC - Edibles - Solids - Non-medical - Direct to consumer (online) value ($)","$","Number from 0 to 1000000, maximum precision of 2 decimal places.","The number and the book value, in Canadian dollars (net of sales tax), of cannabis products sold as a result of a consumer placing an order through a provincial or territorial online system. To be reported according to the province or territory where the consumer resides.\n\nNOTE: Refer to Appendix A4, Figure 5 of the Cannabis Tracking System Monthly Reporting Guide for instructions on how to report sales of this type when an order is filled using drop shipping."]
["F38","Sales - BC - Edibles - Solids - Non-medical - Direct to consumer (retail) (#)","#","Whole number from 0 to 1000000.","The number and the book value, in Canadian dollars (net of sales tax), of cannabis products sold as a result of an in-store purchase at a provincially or territorially authorized retailer."]
["F39","Sales - BC - Edibles - Solids - Non-medical - Direct to consumer (retail) value ($)","$","Number from 0 to 1000000, maximum precision of 2 decimal places.","The number and the book value, in Canadian dollars (net of sales tax), of cannabis products sold as a result of an in-store purchase at a provincially or territorially authorized retailer."]
[null,"Sales - BC - Edibles - Solids - Non-medical - To distributor (#)","#","Whole number from 0 to 1000000.","The number and the book value, in Canadian dollars (net of sales tax), of cannabis products sold to a provincially or territorially authorized distributor/wholesaler."]
[null,"Sales - BC - Edibles - Solids - Non-medical - To distributor value ($)","$","Number from 0 to 1000000, maximum precision of 2 decimal places.","The number and the book value, in Canadian dollars (net of sales tax), of cannabis products sold to a provincially or territorially authorized distributor/wholesaler."]
[null,"Sales - BC - Edibles - Solids - Non-medical - To retailer (#)","#","Whole number from 0 to 1000000.","The number and the book value, in Canadian dollars (net of sales tax), of cannabis products sold to a provincially or territorially authorized retailer."]
[null,"Sales - BC - Edibles - Solids - Non-medical - To retailer value ($)","$","Number from 0 to 1000000, maximum precision of 2 decimal places.","The number and the book value, in Canadian dollars (net of sales tax), of cannabis products sold to a provincially or territorially authorized retailer."]
[null,"Sales - Total - Edibles - Solids - Non-medical - Direct to consumer (online) (#)","#","Whole number from 0 to 1000000.","The number and the book value, in Canadian dollars (net of sales tax), of cannabis products sold as a result of a consumer placing an order through a provincial or territorial online system. To be reported according to the province or territory where the consumer resides.\n\nNOTE: Refer to Appendix A4, Figure 5 of the Cannabis Tracking System Monthly Reporting Guide for instructions on how to report sales of this type when an order is filled using drop shipping."]
[null,"Sales - Total - Edibles - Solids - Non-medical - Direct to consumer (online) value ($)","$","Number from 0 to 1000000, maximum precision of 2 decimal places.","The number and the book value, in Canadian dollars (net of sales tax), of cannabis products sold as a result of a consumer placing an order through a provincial or territorial online system. To be reported according to the province or territory where the consumer resides.\n\nNOTE: Refer to Appendix A4, Figure 5 of the Cannabis Tracking System Monthly Reporting Guide for instructions on how to report sales of this type when an order is filled using drop shipping."]
[null,"Sales - Total - Edibles - Solids - Non-medical - Direct to consumer (retail) (#)","#","Whole number from 0 to 1000000.","The number and the book value, in Canadian dollars (net of sales tax), of cannabis products sold as a result of an in-store purchase at a provincially or territorially authorized retailer."]
[null,"Sales - Total - Edibles - Solids - Non-medical - Direct to consumer (retail) value ($)","$","Number from 0 to 1000000, maximum precision of 2 decimal places.","The number and the book value, in Canadian dollars (net of sales tax), of cannabis products sold as a result of an in-store purchase at a provincially or territorially authorized retailer."]
[null,"Sales - Total - Edibles - Solids - Non-medical - To distributor (#)","#","Whole number from 0 to 1000000.","The number and the book value, in Canadian dollars (net of sales tax), of cannabis products sold to a provincially or territorially authorized distributor/wholesaler."]
[null,"Sales - Total - Edibles - Solids - Non-medical - To distributor value ($)","$","Number from 0 to 1000000, maximum precision of 2 decimal places.","The number and the book value, in Canadian dollars (net of sales tax), of cannabis products sold to a provincially or territorially authorized distributor/wholesaler."]
[null,"Sales - Total - Edibles - Solids - Non-medical - To retailer (#)","#","Whole number from 0 to 1000000.","The number and the book value, in Canadian dollars (net of sales tax), of cannabis products sold to a provincially or territorially authorized retailer."]
[null,"Sales - Total - Edibles - Solids - Non-medical - To retailer value ($)","$","Number from 0 to 1000000, maximum precision of 2 decimal places.","The number and the book value, in Canadian dollars (net of sales tax), of cannabis products sold to a provincially or territorially authorized retailer."]
[null,"Sales - BC - Edibles - Non-solids - Non-medical - Direct to consumer (online) (#)","#","Whole number from 0 to 1000000.","The number and the book value, in Canadian dollars (net of sales tax), of cannabis products sold as a result of a consumer placing an order through a provincial or territorial online system. To be reported according to the province or territory where the consumer resides.\n\nNOTE: Refer to Appendix A4, Figure 5 of the Cannabis Tracking System Monthly Reporting Guide for instructions on how to report sales of this type when an order is filled using drop shipping."]
[null,"Sales - BC - Edibles - Non-solids - Non-medical - Direct to consumer (online) value ($)","$","Number from 0 to 1000000, maximum precision of 2 decimal places.","The number and the book value, in Canadian dollars (net of sales tax), of cannabis products sold as a result of a consumer placing an order through a provincial or territorial online system. To be reported according to the province or territory where the consumer resides.\n\nNOTE: Refer to Appendix A4, Figure 5 of the Cannabis Tracking System Monthly Reporting Guide for instructions on how to report sales of this type when an order is filled using drop shipping."]
["G38","Sales - BC - Edibles - Non-solids - Non-medical - Direct to consumer (retail) (#)","#","Whole number from 0 to 1000000.","The number and the book value, in Canadian dollars (net of sales tax), of cannabis products sold as a result of an in-store purchase at a provincially or territorially authorized retailer."]
["G39","Sales - BC - Edibles - Non-solids - Non-medical - Direct to consumer (retail) value ($)","$","Number from 0 to 1000000, maximum precision of 2 decimal places.","The number and the book value, in Canadian dollars (net of sales tax), of cannabis products sold as a result of an in-store purchase at a provincially or territorially authorized retailer."]
[null,"Sales - BC - Edibles - Non-solids - Non-medical - To distributor (#)","#","Whole number from 0 to 1000000.","The number and the book value, in Canadian dollars (net of sales tax), of cannabis products sold to a provincially or territorially authorized distributor/wholesaler."]
[null,"Sales - BC - Edibles - Non-solids - Non-medical - To distributor value ($)","$","Number from 0 to 1000000, maximum precision of 2 decimal places.","The number and the book value, in Canadian dollars (net of sales tax), of cannabis products sold to a provincially or territorially authorized distributor/wholesaler."]
[null,"Sales - BC - Edibles - Non-solids - Non-medical - To retailer (#)","#","Whole number from 0 to 1000000.","The number and the book value, in Canadian dollars (net of sales tax), of cannabis products sold to a provincially or territorially authorized retailer."]
[null,"Sales - BC - Edibles - Non-solids - Non-medical - To retailer value ($)","$","Number from 0 to 1000000, maximum precision of 2 decimal places.","The number and the book value, in Canadian dollars (net of sales tax), of cannabis products sold to a provincially or territorially authorized retailer."]
[null,"Sales - Total - Edibles - Non-solids - Non-medical - Direct to consumer (online) (#)","#","Whole number from 0 to 1000000.","The number and the book value, in Canadian dollars (net of sales tax), of cannabis products sold as a result of a consumer placing an order through a provincial or territorial online system. To be reported according to the province or territory where the consumer resides.\n\nNOTE: Refer to Appendix A4, Figure 5 of the Cannabis Tracking System Monthly Reporting Guide for instructions on how to report sales of this type when an order is filled using drop shipping."]
[null,"Sales - Total - Edibles - Non-solids - Non-medical - Direct to consumer (online) value ($)","$","Number from 0 to 1000000, maximum precision of 2 decimal places.","The number and the book value, in Canadian dollars (net of sales tax), of cannabis products sold as a result of a consumer placing an order through a provincial or territorial online system. To be reported according to the province or territory where the consumer resides.\n\nNOTE: Refer to Appendix A4, Figure 5 of the Cannabis Tracking System Monthly Reporting Guide for instructions on how to report sales of this type when an order is filled using drop shipping."]
[null,"Sales - Total - Edibles - Non-solids - Non-medical - Direct to consumer (retail) (#)","#","Whole number from 0 to 1000000.","The number and the book value, in Canadian dollars (net of sales tax), of cannabis products sold as a result of an in-store purchase at a provincially or territorially authorized retailer."]
[null,"Sales - Total - Edibles - Non-solids - Non-medical - Direct to consumer (retail) value ($)","$","Number from 0 to 1000000, maximum precision of 2 decimal places.","The number and the book value, in Canadian dollars (net of sales tax), of cannabis products sold as a result of an in-store purchase at a provincially or territorially authorized retailer."]
[null,"Sales - Total - Edibles - Non-solids - Non-medical - To distributor (#)","#","Whole number from 0 to 1000000.","The number and the book value, in Canadian dollars (net of sales tax), of cannabis products sold to a provincially or territorially authorized distributor/wholesaler."]
[null,"Sales - Total - Edibles - Non-solids - Non-medical - To distributor value ($)","$","Number from 0 to 1000000, maximum precision of 2 decimal places.","The number and the book value, in Canadian dollars (net of sales tax), of cannabis products sold to a provincially or territorially authorized distributor/wholesaler."]
[null,"Sales - Total - Edibles - Non-solids - Non-medical - To retailer (#)","#","Whole number from 0 to 1000000.","The number and the book value, in Canadian dollars (net of sales tax), of cannabis products sold to a provincially or territorially authorized retailer."]
[null,"Sales - Total - Edibles - Non-solids - Non-medical - To retailer value ($)","$","Number from 0 to 1000000, maximum precision of 2 decimal places.","The number and the book value, in Canadian dollars (net of sales tax), of cannabis products sold to a provincially or territorially authorized retailer."]
[null,"Sales - BC - Extracts - Inhaled - Non-medical - Direct to consumer (online) (#)","#","Whole number from 0 to 1000000.","The number and the book value, in Canadian dollars (net of sales tax), of cannabis products sold as a result of a consumer placing an order through a provincial or territorial online system. To be reported according to the province or territory where the consumer resides.\n\nNOTE: Refer to Appendix A4, Figure 5 of the Cannabis Tracking System Monthly Reporting Guide for instructions on how to report sales of this type when an order is filled using drop shipping."]
[null,"Sales - BC - Extracts - Inhaled - Non-medical - Direct to consumer (online) value ($)","$","Number from 0 to 1000000, maximum precision of 2 decimal places.","The number and the book value, in Canadian dollars (net of sales tax), of cannabis products sold as a result of a consumer placing an order through a provincial or territorial online system. To be reported according to the province or territory where the consumer resides.\n\nNOTE: Refer to Appendix A4, Figure 5 of the Cannabis Tracking System Monthly Reporting Guide for instructions on how to report sales of this type when an order is filled using drop shipping."]
["H38","Sales - BC - Extracts - Inhaled - Non-medical - Direct to consumer (retail) (#)","#","Whole number from 0 to 1000000.","The number and the book value, in Canadian dollars (net of sales tax), of cannabis products sold as a result of an in-store purchase at a provincially or territorially authorized retailer."]
["H39","Sales - BC - Extracts - Inhaled - Non-medical - Direct to consumer (retail) value ($)","$","Number from 0 to 1000000, maximum precision of 2 decimal places.","The number and the book value, in Canadian dollars (net of sales tax), of cannabis products sold as a result of an in-store purchase at a provincially or territorially authorized retailer."]
[null,"Sales - BC - Extracts - Inhaled - Non-medical - To distributor (#)","#","Whole number from 0 to 1000000.","The number and the book value, in Canadian dollars (net of sales tax), of cannabis products sold to a provincially or territorially authorized distributor/wholesaler."]
[null,"Sales - BC - Extracts - Inhaled - Non-medical - To distributor value ($)","$","Number from 0 to 1000000, maximum precision of 2 decimal places.","The number and the book value, in Canadian dollars (net of sales tax), of cannabis products sold to a provincially or territorially authorized distributor/wholesaler."]
[null,"Sales - BC - Extracts - Inhaled - Non-medical - To retailer (#)","#","Whole number from 0 to 1000000.","The number and the book value, in Canadian dollars (net of sales tax), of cannabis products sold to a provincially or territorially authorized retailer."]
[null,"Sales - BC - Extracts - Inhaled - Non-medical - To retailer value ($)","$","Number from 0 to 1000000, maximum precision of 2 decimal places.","The number and the book value, in Canadian dollars (net of sales tax), of cannabis products sold to a provincially or territorially authorized retailer."]
[null,"Sales - Total - Extracts - Inhaled - Non-medical - Direct to consumer (online) (#)","#","Whole number from 0 to 1000000.","The number and the book value, in Canadian dollars (net of sales tax), of cannabis products sold as a result of a consumer placing an order through a provincial or territorial online system. To be reported according to the province or territory where the consumer resides.\n\nNOTE: Refer to Appendix A4, Figure 5 of the Cannabis Tracking System Monthly Reporting Guide for instructions on how to report sales of this type when an order is filled using drop shipping."]
[null,"Sales - Total - Extracts - Inhaled - Non-medical - Direct to consumer (online) value ($)","$","Number from 0 to 1000000, maximum precision of 2 decimal places.","The number and the book value, in Canadian dollars (net of sales tax), of cannabis products sold as a result of a consumer placing an order through a provincial or territorial online system. To be reported according to the province or territory where the consumer resides.\n\nNOTE: Refer to Appendix A4, Figure 5 of the Cannabis Tracking System Monthly Reporting Guide for instructions on how to report sales of this type when an order is filled using drop shipping."]
[null,"Sales - Total - Extracts - Inhaled - Non-medical - Direct to consumer (retail) (#)","#","Whole number from 0 to 1000000.","The number and the book value, in Canadian dollars (net of sales tax), of cannabis products sold as a result of an in-store purchase at a provincially or territorially authorized retailer."]
[null,"Sales - Total - Extracts - Inhaled - Non-medical - Direct to consumer (retail) value ($)","$","Number from 0 to 1000000, maximum precision of 2 decimal places.","The number and the book value, in Canadian dollars (net of sales tax), of cannabis products sold as a result of an in-store purchase at a provincially or territorially authorized retailer."]
[null,"Sales - Total - Extracts - Inhaled - Non-medical - To distributor (#)","#","Whole number from 0 to 1000000.","The number and the book value, in Canadian dollars (net of sales tax), of cannabis products sold to a provincially or territorially authorized distributor/wholesaler."]
[null,"Sales - Total - Extracts - Inhaled - Non-medical - To distributor value ($)","$","Number from 0 to 1000000, maximum precision of 2 decimal places.","The number and the book value, in Canadian dollars (net of sales tax), of cannabis products sold to a provincially or territorially authorized distributor/wholesaler."]
[null,"Sales - Total - Extracts - Inhaled - Non-medical - To retailer (#)","#","Whole number from 0 to 1000000.","The number and the book value, in Canadian dollars (net of sales tax), of cannabis products sold to a provincially or territorially authorized retailer."]
[null,"Sales - Total - Extracts - Inhaled - Non-medical - To retailer value ($)","$","Number from 0 to 1000000, maximum precision of 2 decimal places.","The number and the book value, in Canadian dollars (net of sales tax), of cannabis products sold to a provincially or territorially authorized retailer."]
[null,"Sales - BC - Extracts - Ingested - Non-medical - Direct to consumer (online) (#)","#","Whole number from 0 to 1000000.","The number and the book value, in Canadian dollars (net of sales tax), of cannabis products sold as a result of a consumer placing an order through a provincial or territorial online system. To be reported according to the province or territory where the consumer resides.\n\nNOTE: Refer to Appendix A4, Figure 5 of the Cannabis Tracking System Monthly Reporting Guide for instructions on how to report sales of this type when an order is filled using drop shipping."]
[null,"Sales - BC - Extracts - Ingested - Non-medical - Direct to consumer (online) value ($)","$","Number from 0 to 1000000, maximum precision of 2 decimal places.","The number and the book value, in Canadian dollars (net of sales tax), of cannabis products sold as a result of a consumer placing an order through a provincial or territorial online system. To be reported according to the province or territory where the consumer resides.\n\nNOTE: Refer to Appendix A4, Figure 5 of the Cannabis Tracking System Monthly Reporting Guide for instructions on how to report sales of this type when an order is filled using drop shipping."]
["I38","Sales - BC - Extracts - Ingested - Non-medical - Direct to consumer (retail) (#)","#","Whole number from 0 to 1000000.","The number and the book value, in Canadian dollars (net of sales tax), of cannabis products sold as a result of an in-store purchase at a provincially or territorially authorized retailer."]
["I39","Sales - BC - Extracts - Ingested - Non-medical - Direct to consumer (retail) value ($)","$","Number from 0 to 1000000, maximum precision of 2 decimal places.","The number and the book value, in Canadian dollars (net of sales tax), of cannabis products sold as a result of an in-store purchase at a provincially or territorially authorized retailer."]
[null,"Sales - BC - Extracts - Ingested - Non-medical - To distributor (#)","#","Whole number from 0 to 1000000.","The number and the book value, in Canadian dollars (net of sales tax), of cannabis products sold to a provincially or territorially authorized distributor/wholesaler."]
[null,"Sales - BC - Extracts - Ingested - Non-medical - To distributor value ($)","$","Number from 0 to 1000000, maximum precision of 2 decimal places.","The number and the book value, in Canadian dollars (net of sales tax), of cannabis products sold to a provincially or territorially authorized distributor/wholesaler."]
[null,"Sales - BC - Extracts - Ingested - Non-medical - To retailer (#)","#","Whole number from 0 to 1000000.","The number and the book value, in Canadian dollars (net of sales tax), of cannabis products sold to a provincially or territorially authorized retailer."]
[null,"Sales - BC - Extracts - Ingested - Non-medical - To retailer value ($)","$","Number from 0 to 1000000, maximum precision of 2 decimal places.","The number and the book value, in Canadian dollars (net of sales tax), of cannabis products sold to a provincially or territorially authorized retailer."]
[null,"Sales - Total - Extracts - Ingested - Non-medical - Direct to consumer (online) (#)","#","Whole number from 0 to 1000000.","The number and the book value, in Canadian dollars (net of sales tax), of cannabis products sold as a result of a consumer placing an order through a provincial or territorial online system. To be reported according to the province or territory where the consumer resides.\n\nNOTE: Refer to Appendix A4, Figure 5 of the Cannabis Tracking System Monthly Reporting Guide for instructions on how to report sales of this type when an order is filled using drop shipping."]
[null,"Sales - Total - Extracts - Ingested - Non-medical - Direct to consumer (online) value ($)","$","Number from 0 to 1000000, maximum precision of 2 decimal places.","The number and the book value, in Canadian dollars (net of sales tax), of cannabis products sold as a result of a consumer placing an order through a provincial or territorial online system. To be reported according to the province or territory where the consumer resides.\n\nNOTE: Refer to Appendix A4, Figure 5 of the Cannabis Tracking System Monthly Reporting Guide for instructions on how to report sales of this type when an order is filled using drop shipping."]
[null,"Sales - Total - Extracts - Ingested - Non-medical - Direct to consumer (retail) (#)","#","Whole number from 0 to 1000000.","The number and the book value, in Canadian dollars (net of sales tax), of cannabis products sold as a result of an in-store purchase at a provincially or territorially authorized retailer."]
[null,"Sales - Total - Extracts - Ingested - Non-medical - Direct to consumer (retail) value ($)","$","Number from 0 to 1000000, maximum precision of 2 decimal places.","The number and the book value, in Canadian dollars (net of sales tax), of cannabis products sold as a result of an in-store purchase at a provincially or territorially authorized retailer."]
[null,"Sales - Total - Extracts - Ingested - Non-medical - To distributor (#)","#","Whole number from 0 to 1000000.","The number and the book value, in Canadian dollars (net of sales tax), of cannabis products sold to a provincially or territorially authorized distributor/wholesaler."]
[null,"Sales - Total - Extracts - Ingested - Non-medical - To distributor value ($)","$","Number from 0 to 1000000, maximum precision of 2 decimal places.","The number and the book value, in Canadian dollars (net of sales tax), of cannabis products sold to a provincially or territorially authorized distributor/wholesaler."]
[null,"Sales - Total - Extracts - Ingested - Non-medical - To retailer (#)","#","Whole number from 0 to 1000000.","The number and the book value, in Canadian dollars (net of sales tax), of cannabis products sold to a provincially or territorially authorized retailer."]
[null,"Sales - Total - Extracts - Ingested - Non-medical - To retailer value ($)","$","Number from 0 to 1000000, maximum precision of 2 decimal places.","The number and the book value, in Canadian dollars (net of sales tax), of cannabis products sold to a provincially or territorially authorized retailer."]
[null,"Sales - BC - Extracts - Other - Non-medical - Direct to consumer (online) (#)","#","Whole number from 0 to 1000000.","The number and the book value, in Canadian dollars (net of sales tax), of cannabis products sold as a result of a consumer placing an order through a provincial or territorial online system. To be reported according to the province or territory where the consumer resides.\n\nNOTE: Refer to Appendix A4, Figure 5 of the Cannabis Tracking System Monthly Reporting Guide for instructions on how to report sales of this type when an order is filled using drop shipping."]
[null,"Sales - BC - Extracts - Other - Non-medical - Direct to consumer (online) value ($)","$","Number from 0 to 1000000, maximum precision of 2 decimal places.","The number and the book value, in Canadian dollars (net of sales tax), of cannabis products sold as a result of a consumer placing an order through a provincial or territorial online system. To be reported according to the province or territory where the consumer resides.\n\nNOTE: Refer to Appendix A4, Figure 5 of the Cannabis Tracking System Monthly Reporting Guide for instructions on how to report sales of this type when an order is filled using drop shipping."]
["J38","Sales - BC - Extracts - Other - Non-medical - Direct to consumer (retail) (#)","#","Whole number from 0 to 1000000.","The number and the book value, in Canadian dollars (net of sales tax), of cannabis products sold as a result of an in-store purchase at a provincially or territorially authorized retailer."]
["J39","Sales - BC - Extracts - Other - Non-medical - Direct to consumer (retail) value ($)","$","Number from 0 to 1000000, maximum precision of 2 decimal places.","The number and the book value, in Canadian dollars (net of sales tax), of cannabis products sold as a result of an in-store purchase at a provincially or territorially authorized retailer."]
[null,"Sales - BC - Extracts - Other - Non-medical - To distributor (#)","#","Whole number from 0 to 1000000.","The number and the book value, in Canadian dollars (net of sales tax), of cannabis products sold to a provincially or territorially authorized distributor/wholesaler."]
[null,"Sales - BC - Extracts - Other - Non-medical - To distributor value ($)","$","Number from 0 to 1000000, maximum precision of 2 decimal places.","The number and the book value, in Canadian dollars (net of sales tax), of cannabis products sold to a provincially or territorially authorized distributor/wholesaler."]
[null,"Sales - BC - Extracts - Other - Non-medical - To retailer (#)","#","Whole number from 0 to 1000000.","The number and the book value, in Canadian dollars (net of sales tax), of cannabis products sold to a provincially or territorially authorized retailer."]
[null,"Sales - BC - Extracts - Other - Non-medical - To retailer value ($)","$","Number from 0 to 1000000, maximum precision of 2 decimal places.","The number and the book value, in Canadian dollars (net of sales tax), of cannabis products sold to a provincially or territorially authorized retailer."]
[null,"Sales - Total - Extracts - Other - Non-medical - Direct to consumer (online) (#)","#","Whole number from 0 to 1000000.","The number and the book value, in Canadian dollars (net of sales tax), of cannabis products sold as a result of a consumer placing an order through a provincial or territorial online system. To be reported according to the province or territory where the consumer resides.\n\nNOTE: Refer to Appendix A4, Figure 5 of the Cannabis Tracking System Monthly Reporting Guide for instructions on how to report sales of this type when an order is filled using drop shipping."]
[null,"Sales - Total - Extracts - Other - Non-medical - Direct to consumer (online) value ($)","$","Number from 0 to 1000000, maximum precision of 2 decimal places.","The number and the book value, in Canadian dollars (net of sales tax), of cannabis products sold as a result of a consumer placing an order through a provincial or territorial online system. To be reported according to the province or territory where the consumer resides.\n\nNOTE: Refer to Appendix A4, Figure 5 of the Cannabis Tracking System Monthly Reporting Guide for instructions on how to report sales of this type when an order is filled using drop shipping."]
[null,"Sales - Total - Extracts - Other - Non-medical - Direct to consumer (retail) (#)","#","Whole number from 0 to 1000000.","The number and the book value, in Canadian dollars (net of sales tax), of cannabis products sold as a result of an in-store purchase at a provincially or territorially authorized retailer."]
[null,"Sales - Total - Extracts - Other - Non-medical - Direct to consumer (retail) value ($)","$","Number from 0 to 1000000, maximum precision of 2 decimal places.","The number and the book value, in Canadian dollars (net of sales tax), of cannabis products sold as a result of an in-store purchase at a provincially or territorially authorized retailer."]
[null,"Sales - Total - Extracts - Other - Non-medical - To distributor (#)","#","Whole number from 0 to 1000000.","The number and the book value, in Canadian dollars (net of sales tax), of cannabis products sold to a provincially or territorially authorized distributor/wholesaler."]
[null,"Sales - Total - Extracts - Other - Non-medical - To distributor value ($)","$","Number from 0 to 1000000, maximum precision of 2 decimal places.","The number and the book value, in Canadian dollars (net of sales tax), of cannabis products sold to a provincially or territorially authorized distributor/wholesaler."]
[null,"Sales - Total - Extracts - Other - Non-medical - To retailer (#)","#","Whole number from 0 to 1000000.","The number and the book value, in Canadian dollars (net of sales tax), of cannabis products sold to a provincially or territorially authorized retailer."]
[null,"Sales - Total - Extracts - Other - Non-medical - To retailer value ($)","$","Number from 0 to 1000000, maximum precision of 2 decimal places.","The number and the book value, in Canadian dollars (net of sales tax), of cannabis products sold to a provincially or territorially authorized retailer."]
[null,"Sales - BC - Topicals - Non-medical - Direct to consumer (online) (#)","#","Whole number from 0 to 1000000.","The number and the book value, in Canadian dollars (net of sales tax), of cannabis products sold as a result of a consumer placing an order through a provincial or territorial online system. To be reported according to the province or territory where the consumer resides.\n\nNOTE: Refer to Appendix A4, Figure 5 of the Cannabis Tracking System Monthly Reporting Guide for instructions on how to report sales of this type when an order is filled using drop shipping."]
[null,"Sales - BC - Topicals - Non-medical - Direct to consumer (online) value ($)","$","Number from 0 to 1000000, maximum precision of 2 decimal places.","The number and the book value, in Canadian dollars (net of sales tax), of cannabis products sold as a result of a consumer placing an order through a provincial or territorial online system. To be reported according to the province or territory where the consumer resides.\n\nNOTE: Refer to Appendix A4, Figure 5 of the Cannabis Tracking System Monthly Reporting Guide for instructions on how to report sales of this type when an order is filled using drop shipping."]
["K38","Sales - BC - Topicals - Non-medical - Direct to consumer (retail) (#)","#","Whole number from 0 to 1000000.","The number and the book value, in Canadian dollars (net of sales tax), of cannabis products sold as a result of an in-store purchase at a provincially or territorially authorized retailer."]
["K39","Sales - BC - Topicals - Non-medical - Direct to consumer (retail) value ($)","$","Number from 0 to 1000000, maximum precision of 2 decimal places.","The number and the book value, in Canadian dollars (net of sales tax), of cannabis products sold as a result of an in-store purchase at a provincially or territorially authorized retailer."]
[null,"Sales - BC - Topicals - Non-medical - To distributor (#)","#","Whole number from 0 to 1000000.","The number and the book value, in Canadian dollars (net of sales tax), of cannabis products sold to a provincially or territorially authorized distributor/wholesaler."]
[null,"Sales - BC - Topicals - Non-medical - To distributor value ($)","$","Number from 0 to 1000000, maximum precision of 2 decimal places.","The number and the book value, in Canadian dollars (net of sales tax), of cannabis products sold to a provincially or territorially authorized distributor/wholesaler."]
[null,"Sales - BC - Topicals - Non-medical - To retailer (#)","#","Whole number from 0 to 1000000.","The number and the book value, in Canadian dollars (net of sales tax), of cannabis products sold to a provincially or territorially authorized retailer."]
[null,"Sales - BC - Topicals - Non-medical - To retailer value ($)","$","Number from 0 to 1000000, maximum precision of 2 decimal places.","The number and the book value, in Canadian dollars (net of sales tax), of cannabis products sold to a provincially or territorially authorized retailer."]
[null,"Sales - Total - Topicals - Non-medical - Direct to consumer (online) (#)","#","Whole number from 0 to 1000000.","The number and the book value, in Canadian dollars (net of sales tax), of cannabis products sold as a result of a consumer placing an order through a provincial or territorial online system. To be reported according to the province or territory where the consumer resides.\n\nNOTE: Refer to Appendix A4, Figure 5 of the Cannabis Tracking System Monthly Reporting Guide for instructions on how to report sales of this type when an order is filled using drop shipping."]
[null,"Sales - Total - Topicals - Non-medical - Direct to consumer (online) value ($)","$","Number from 0 to 1000000, maximum precision of 2 decimal places.","The number and the book value, in Canadian dollars (net of sales tax), of cannabis products sold as a result of a consumer placing an order through a provincial or territorial online system. To be reported according to the province or territory where the consumer resides.\n\nNOTE: Refer to Appendix A4, Figure 5 of the Cannabis Tracking System Monthly Reporting Guide for instructions on how to report sales of this type when an order is filled using drop shipping."]
[null,"Sales - Total - Topicals - Non-medical - Direct to consumer (retail) (#)","#","Whole number from 0 to 1000000.","The number and the book value, in Canadian dollars (net of sales tax), of cannabis products sold as a result of an in-store purchase at a provincially or territorially authorized retailer."]
[null,"Sales - Total - Topicals - Non-medical - Direct to consumer (retail) value ($)","$","Number from 0 to 1000000, maximum precision of 2 decimal places.","The number and the book value, in Canadian dollars (net of sales tax), of cannabis products sold as a result of an in-store purchase at a provincially or territorially authorized retailer."]
[null,"Sales - Total - Topicals - Non-medical - To distributor (#)","#","Whole number from 0 to 1000000.","The number and the book value, in Canadian dollars (net of sales tax), of cannabis products sold to a provincially or territorially authorized distributor/wholesaler."]
[null,"Sales - Total - Topicals - Non-medical - To distributor value ($)","$","Number from 0 to 1000000, maximum precision of 2 decimal places.","The number and the book value, in Canadian dollars (net of sales tax), of cannabis products sold to a provincially or territorially authorized distributor/wholesaler."]
[null,"Sales - Total - Topicals - Non-medical - To retailer (#)","#","Whole number from 0 to 1000000.","The number and the book value, in Canadian dollars (net of sales tax), of cannabis products sold to a provincially or territorially authorized retailer."]
[null,"Sales - Total - Topicals - Non-medical - To retailer value ($)","$","Number from 0 to 1000000, maximum precision of 2 decimal places.","The number and the book value, in Canadian dollars (net of sales tax), of cannabis products sold to a provincially or territorially authorized retailer."]
[null,"Sales - BC - Other - Non-medical - Direct to consumer (online) (#)","#","Whole number from 0 to 1000000.","The number and the book value, in Canadian dollars (net of sales tax), of cannabis products sold as a result of a consumer placing an order through a provincial or territorial online system. To be reported according to the province or territory where the consumer resides.\n\nNOTE: Refer to Appendix A4, Figure 5 of the Cannabis Tracking System Monthly Reporting Guide for instructions on how to report sales of this type when an order is filled using drop shipping."]
[null,"Sales - BC - Other - Non-medical - Direct to consumer (online) value ($)","$","Number from 0 to 1000000, maximum precision of 2 decimal places.","The number and the book value, in Canadian dollars (net of sales tax), of cannabis products sold as a result of a consumer placing an order through a provincial or territorial online system. To be reported according to the province or territory where the consumer resides.\n\nNOTE: Refer to Appendix A4, Figure 5 of the Cannabis Tracking System Monthly Reporting Guide for instructions on how to report sales of this type when an order is filled using drop shipping."]
["L38","Sales - BC - Other - Non-medical - Direct to consumer (retail) (#)","#","Whole number from 0 to 1000000.","The number and the book value, in Canadian dollars (net of sales tax), of cannabis products sold as a result of an in-store purchase at a provincially or territorially authorized retailer."]
["L39","Sales - BC - Other - Non-medical - Direct to consumer (retail) value ($)","$","Number from 0 to 1000000, maximum precision of 2 decimal places.","The number and the book value, in Canadian dollars (net of sales tax), of cannabis products sold as a result of an in-store purchase at a provincially or territorially authorized retailer."]
[null,"Sales - BC - Other - Non-medical - To distributor (#)","#","Whole number from 0 to 1000000.","The number and the book value, in Canadian dollars (net of sales tax), of cannabis products sold to a provincially or territorially authorized distributor/wholesaler."]
[null,"Sales - BC - Other - Non-medical - To distributor value ($)","$","Number from 0 to 1000000, maximum precision of 2 decimal places.","The number and the book value, in Canadian dollars (net of sales tax), of cannabis products sold to a provincially or territorially authorized distributor/wholesaler."]
[null,"Sales - BC - Other - Non-medical - To retailer (#)","#","Whole number from 0 to 1000000.","The number and the book value, in Canadian dollars (net of sales tax), of cannabis products sold to a provincially or territorially authorized retailer."]
[null,"Sales - BC - Other - Non-medical - To retailer value ($)","$","Number from 0 to 1000000, maximum precision of 2 decimal places.","The number and the book value, in Canadian dollars (net of sales tax), of cannabis products sold to a provincially or territorially authorized retailer."]
[null,"Sales - Total - Other - Non-medical - Direct to consumer (online) (#)","#","Whole number from 0 to 1000000.","The number and the book value, in Canadian dollars (net of sales tax), of cannabis products sold as a result of a consumer placing an order through a provincial or territorial online system. To be reported according to the province or territory where the consumer resides.\n\nNOTE: Refer to Appendix A4, Figure 5 of the Cannabis Tracking System Monthly Reporting Guide for instructions on how to report sales of this type when an order is filled using drop shipping."]
[null,"Sales - Total - Other - Non-medical - Direct to consumer (online) value ($)","$","Number from 0 to 1000000, maximum precision of 2 decimal places.","The number and the book value, in Canadian dollars (net of sales tax), of cannabis products sold as a result of a consumer placing an order through a provincial or territorial online system. To be reported according to the province or territory where the consumer resides.\n\nNOTE: Refer to Appendix A4, Figure 5 of the Cannabis Tracking System Monthly Reporting Guide for instructions on how to report sales of this type when an order is filled using drop shipping."]
[null,"Sales - Total - Other - Non-medical - Direct to consumer (retail) (#)","#","Whole number from 0 to 1000000.","The number and the book value, in Canadian dollars (net of sales tax), of cannabis products sold as a result of an in-store purchase at a provincially or territorially authorized retailer."]
[null,"Sales - Total - Other - Non-medical - Direct to consumer (retail) value ($)","$","Number from 0 to 1000000, maximum precision of 2 decimal places.","The number and the book value, in Canadian dollars (net of sales tax), of cannabis products sold as a result of an in-store purchase at a provincially or territorially authorized retailer."]
[null,"Sales - Total - Other - Non-medical - To distributor (#)","#","Whole number from 0 to 1000000.","The number and the book value, in Canadian dollars (net of sales tax), of cannabis products sold to a provincially or territorially authorized distributor/wholesaler."]
[null,"Sales - Total - Other - Non-medical - To distributor value ($)","$","Number from 0 to 1000000, maximum precision of 2 decimal places.","The number and the book value, in Canadian dollars (net of sales tax), of cannabis products sold to a provincially or territorially authorized distributor/wholesaler."]
[null,"Sales - Total - Other - Non-medical - To retailer (#)","#","Whole number from 0 to 1000000.","The number and the book value, in Canadian dollars (net of sales tax), of cannabis products sold to a provincially or territorially authorized retailer."]
[null,"Sales - Total - Other - Non-medical - To retailer value ($)","$","Number from 0 to 1000000, maximum precision of 2 decimal places.","The number and the book value, in Canadian dollars (net of sales tax), of cannabis products sold to a provincially or territorially authorized retailer."]